[Event "Live Chess"]
[Site "Chess.com"]
[Date "2024.06.01"]
[Round "-"]
[White "MagnersCarlsberg2870"]
[Black "matt1979"]
[Result "0-1"]
[WhiteElo "1791"]
[BlackElo "1370"]
[TimeControl "300"]
[EndTime "13:47:04 PDT"]
[Termination "matt1979 won by resignation"]

1. d4 {[%clk 0:04:56.6]} 1... e6 {[%clk 0:04:58.4]} 2. Nf3 {[%clk 0:04:55]} 2...
f5 {[%clk 0:04:57.2]} 3. Nc3 {[%clk 0:04:53.2]} 3... Bb4 {[%clk 0:04:55.2]} 4.
a3 {[%clk 0:04:49.5]} 4... Bxc3+ {[%clk 0:04:53.2]} 5. bxc3 {[%clk 0:04:48.7]}
5... Nf6 {[%clk 0:04:52.1]} 6. Ne5 {[%clk 0:04:47.1]} 6... d6 {[%clk 0:04:50.6]}
7. Nd3 {[%clk 0:04:45.6]} 7... O-O {[%clk 0:04:46.1]} 8. Bg5 {[%clk 0:04:44.5]}
8... Qe8 {[%clk 0:04:42.8]} 9. f3 {[%clk 0:04:42.5]} 9... Qh5 {[%clk 0:04:36.4]}
10. Bxf6 {[%clk 0:04:40.2]} 10... Rxf6 {[%clk 0:04:34.1]} 11. Nf4 {[%clk
0:04:39.2]} 11... Qg5 {[%clk 0:04:21]} 12. g3 {[%clk 0:04:32]} 12... Nc6 {[%clk
0:04:07.7]} 13. h4 {[%clk 0:04:30.8]} 13... Qh6 {[%clk 0:04:04.6]} 14. e4 {[%clk
0:04:24.1]} 14... fxe4 {[%clk 0:04:00.9]} 15. fxe4 {[%clk 0:04:22.8]} 15... Rxf4
{[%clk 0:03:51]} 16. gxf4 {[%clk 0:04:21.4]} 16... Qxf4 {[%clk 0:03:49.9]} 17.
Qd2 {[%clk 0:04:17]} 17... Qg3+ {[%clk 0:03:45.6]} 18. Qf2 {[%clk 0:04:15.7]}
18... Qxc3+ {[%clk 0:03:44]} 19. Ke2 {[%clk 0:04:06.6]} 19... Qxa1 {[%clk
0:03:40.2]} 20. Bg2 {[%clk 0:04:04.6]} 20... Qc3 {[%clk 0:03:35]} 21. Rh3 {[%clk
0:04:00.7]} 21... Qxc2+ {[%clk 0:03:32.2]} 22. Kf3 {[%clk 0:03:57.7]} 22...
Qxf2+ {[%clk 0:03:30.8]} 23. Kxf2 {[%clk 0:03:56.5]} 0-1

[Event "Live Chess"]
[Site "Chess.com"]
[Date "2024.06.01"]
[Round "-"]
[White "OxonChess"]
[Black "CarmelJane"]
[Result "0-1"]
[WhiteElo "1505"]
[BlackElo "2083"]
[TimeControl "300"]
[EndTime "13:47:21 PDT"]
[Termination "CarmelJane won by checkmate"]

1. Nf3 {[%clk 0:04:53.4]} 1... g6 {[%clk 0:04:58.5]} 2. c4 {[%clk 0:04:52.2]}
2... Bg7 {[%clk 0:04:58.4]} 3. g3 {[%clk 0:04:51]} 3... c5 {[%clk 0:04:57.9]} 4.
Bg2 {[%clk 0:04:50.2]} 4... Nf6 {[%clk 0:04:57.4]} 5. O-O {[%clk 0:04:49.5]}
5... O-O {[%clk 0:04:57.1]} 6. Nc3 {[%clk 0:04:48.6]} 6... Nc6 {[%clk
0:04:56.1]} 7. d4 {[%clk 0:04:47.5]} 7... cxd4 {[%clk 0:04:56]} 8. Nxd4 {[%clk
0:04:46.6]} 8... a6 {[%clk 0:04:48.9]} 9. c5 {[%clk 0:04:45]} 9... e5 {[%clk
0:03:52.2]} 10. Nb3 {[%clk 0:04:38.4]} 10... Qe7 {[%clk 0:03:39.5]} 11. Bg5
{[%clk 0:04:33]} 11... h6 {[%clk 0:03:38.1]} 12. Nd5 {[%clk 0:04:31.2]} 12...
Qd8 {[%clk 0:03:34.7]} 13. Nxf6+ {[%clk 0:04:24.5]} 13... Bxf6 {[%clk
0:03:32.7]} 14. Bxh6 {[%clk 0:04:23]} 14... Re8 {[%clk 0:03:32.4]} 15. h4 {[%clk
0:04:04.4]} 15... e4 {[%clk 0:03:29.8]} 16. Qc2 {[%clk 0:03:56.1]} 16... Nb4
{[%clk 0:03:18.1]} 17. Qc4 {[%clk 0:03:53.4]} 17... a5 {[%clk 0:02:48.4]} 18.
Bxe4 {[%clk 0:03:49.8]} 18... d5 {[%clk 0:02:41.3]} 19. cxd6 {[%clk 0:03:46.7]}
19... Qxd6 {[%clk 0:02:40]} 20. Bxg6 {[%clk 0:03:40.7]} 20... Be6 {[%clk
0:02:33.3]} 21. Qd3 {[%clk 0:03:26.2]} 21... Nxd3 {[%clk 0:02:28.7]} 22. Bxd3
{[%clk 0:03:24.4]} 22... Bg7 {[%clk 0:02:20]} 23. Bf4 {[%clk 0:03:22.3]} 23...
Qb4 {[%clk 0:02:08]} 24. Rab1 {[%clk 0:03:16.4]} 24... Bxb3 {[%clk 0:02:04.6]}
25. axb3 {[%clk 0:03:14]} 25... Qxb3 {[%clk 0:02:04.5]} 26. Rfc1 {[%clk
0:03:10]} 26... Rac8 {[%clk 0:02:00.3]} 27. Rd1 {[%clk 0:03:06.2]} 27... a4
{[%clk 0:01:51.1]} 28. Rd2 {[%clk 0:02:51.5]} 28... b5 {[%clk 0:01:46.5]} 29.
Rdd1 {[%clk 0:02:48.6]} 29... b4 {[%clk 0:01:45]} 30. Bd6 {[%clk 0:02:40.9]}
30... Bxb2 {[%clk 0:01:32.4]} 31. Rd2 {[%clk 0:02:31]} 31... Rc1+ {[%clk
0:01:30.1]} 32. Rxc1 {[%clk 0:02:27.2]} 32... Bxc1 {[%clk 0:01:30]} 33. Rc2
{[%clk 0:02:22.2]} 33... Bb2 {[%clk 0:01:27.3]} 34. Rc5 {[%clk 0:02:17.1]} 34...
Qe6 {[%clk 0:00:55]} 35. Rg5+ {[%clk 0:02:10.5]} 35... Bg7 {[%clk 0:00:53.4]}
36. Bxb4 {[%clk 0:02:07.9]} 36... Rb8 {[%clk 0:00:41.9]} 37. Bc3 {[%clk
0:02:04]} 37... f6 {[%clk 0:00:39]} 38. Rg4 {[%clk 0:01:59.3]} 38... Rc8 {[%clk
0:00:38]} 39. Re4 {[%clk 0:01:52]} 39... Qxe4 {[%clk 0:00:34.2]} 40. Bxe4 {[%clk
0:01:49.4]} 40... Rxc3 {[%clk 0:00:33.8]} 41. Bd5+ {[%clk 0:01:48.2]} 41... Kh8
{[%clk 0:00:31.5]} 42. Kf1 {[%clk 0:01:46.7]} 42... a3 {[%clk 0:00:30.8]} 43. f4
{[%clk 0:01:45.3]} 43... f5 {[%clk 0:00:30.2]} 44. Ke1 {[%clk 0:01:43.5]} 44...
Bd4 {[%clk 0:00:28.3]} 45. Kd2 {[%clk 0:01:42.1]} 45... Kg7 {[%clk 0:00:26.6]}
46. h5 {[%clk 0:01:39.1]} 46... Rxg3 {[%clk 0:00:24.4]} 47. Kc2 {[%clk
0:01:36.1]} 47... Kh6 {[%clk 0:00:22.8]} 48. Bf3 {[%clk 0:01:34.8]} 48... Bb2
{[%clk 0:00:22]} 49. Kb3 {[%clk 0:01:33.7]} 49... Rg1 {[%clk 0:00:20.1]} 50. Ka2
{[%clk 0:01:32.7]} 50... Rg3 {[%clk 0:00:18.9]} 51. Kb3 {[%clk 0:01:31.6]} 51...
Rxf3+ {[%clk 0:00:18.3]} 52. exf3 {[%clk 0:01:30.6]} 52... Kxh5 {[%clk
0:00:18.2]} 53. Ka2 {[%clk 0:01:29.9]} 53... Kh4 {[%clk 0:00:17.8]} 54. Kb3
{[%clk 0:01:29.8]} 54... Kg3 {[%clk 0:00:17.6]} 55. Ka2 {[%clk 0:01:29.4]} 55...
Kxf3 {[%clk 0:00:17.5]} 56. Kb3 {[%clk 0:01:29.2]} 56... Kxf4 {[%clk 0:00:17.4]}
57. Ka2 {[%clk 0:01:28.8]} 57... Ke3 {[%clk 0:00:17.3]} 58. Kb3 {[%clk
0:01:28.6]} 58... f4 {[%clk 0:00:17.1]} 59. Ka2 {[%clk 0:01:28.4]} 59... f3
{[%clk 0:00:17]} 60. Kb3 {[%clk 0:01:28.3]} 60... Bh8 {[%clk 0:00:15.2]} 61. Ka2
{[%clk 0:01:28.2]} 61... f2 {[%clk 0:00:14.8]} 62. Kb3 {[%clk 0:01:28.1]} 62...
f1=Q {[%clk 0:00:14.7]} 63. Ka2 {[%clk 0:01:28]} 63... Qe2+ {[%clk 0:00:13.4]}
64. Kb3 {[%clk 0:01:27.9]} 64... Qd3+ {[%clk 0:00:12.4]} 65. Ka2 {[%clk
0:01:27.8]} 65... Qc2+ {[%clk 0:00:11]} 66. Kxa3 {[%clk 0:01:26.1]} 66... Qb2+
{[%clk 0:00:10.7]} 67. Ka4 {[%clk 0:01:22.3]} 67... Kd4 {[%clk 0:00:10.6]} 68.
Ka5 {[%clk 0:01:21.3]} 68... Kc5 {[%clk 0:00:10]} 69. Ka6 {[%clk 0:01:21.2]}
69... Qb6# {[%clk 0:00:08.9]} 0-1

[Event "Live Chess"]
[Site "Chess.com"]
[Date "2024.06.01"]
[Round "-"]
[White "ShanthamGrarks"]
[Black "degringolade64"]
[Result "0-1"]
[WhiteElo "1850"]
[BlackElo "2144"]
[TimeControl "300"]
[EndTime "13:47:34 PDT"]
[Termination "degringolade64 won by resignation"]

1. d4 {[%clk 0:04:56.5]} 1... Nf6 {[%clk 0:04:58.2]} 2. Nc3 {[%clk 0:04:54.6]}
2... d5 {[%clk 0:04:57.3]} 3. e4 {[%clk 0:04:53.9]} 3... Nxe4 {[%clk 0:04:53.4]}
4. Nxe4 {[%clk 0:04:51.9]} 4... dxe4 {[%clk 0:04:53.3]} 5. Bc4 {[%clk
0:04:50.9]} 5... Nc6 {[%clk 0:04:32.7]} 6. c3 {[%clk 0:04:48.4]} 6... e5 {[%clk
0:04:30.5]} 7. d5 {[%clk 0:04:45.9]} 7... Ne7 {[%clk 0:04:25.9]} 8. f3 {[%clk
0:04:43.1]} 8... exf3 {[%clk 0:04:19.9]} 9. Nxf3 {[%clk 0:04:41.8]} 9... Ng6
{[%clk 0:04:18.6]} 10. O-O {[%clk 0:04:39]} 10... Bc5+ {[%clk 0:04:16.9]} 11.
Kh1 {[%clk 0:04:37.1]} 11... O-O {[%clk 0:04:15.1]} 12. Bg5 {[%clk 0:04:33.7]}
12... Be7 {[%clk 0:04:03.3]} 13. Bxe7 {[%clk 0:04:32.2]} 13... Qxe7 {[%clk
0:04:01.6]} 14. Qe2 {[%clk 0:04:31]} 14... Bg4 {[%clk 0:03:57.5]} 15. Rae1
{[%clk 0:04:29.2]} 15... Rad8 {[%clk 0:03:43.1]} 16. Qe4 {[%clk 0:04:27.4]}
16... Bxf3 {[%clk 0:03:41.2]} 17. Rxf3 {[%clk 0:04:23.6]} 17... Rd6 {[%clk
0:03:24.6]} 18. Bb3 {[%clk 0:04:11.3]} 18... Qh4 {[%clk 0:03:16.2]} 19. Qxh4
{[%clk 0:04:04.1]} 19... Nxh4 {[%clk 0:03:16.1]} 20. Rh3 {[%clk 0:04:01.1]}
20... Ng6 {[%clk 0:03:10.4]} 21. c4 {[%clk 0:04:00.1]} 21... b6 {[%clk 0:03:05]}
22. Bc2 {[%clk 0:03:58.8]} 22... Re8 {[%clk 0:02:56]} 23. Bxg6 {[%clk
0:03:56.2]} 23... hxg6 {[%clk 0:02:53.9]} 24. Rhe3 {[%clk 0:03:52.6]} 24... f6
{[%clk 0:02:51.9]} 25. g4 {[%clk 0:03:52.2]} 25... g5 {[%clk 0:02:50]} 26. Kg2
{[%clk 0:03:51]} 26... c6 {[%clk 0:02:48.5]} 27. dxc6 {[%clk 0:03:45.9]} 27...
Rxc6 {[%clk 0:02:47]} 28. b3 {[%clk 0:03:43.3]} 28... Rd8 {[%clk 0:02:46]} 29.
R1e2 {[%clk 0:03:40.1]} 29... Rd4 {[%clk 0:02:40.1]} 30. h3 {[%clk 0:03:37.8]}
30... Rcd6 {[%clk 0:02:38.4]} 31. Kf2 {[%clk 0:03:29.8]} 31... Rd2 {[%clk
0:02:35.4]} 32. Rxd2 {[%clk 0:03:28.1]} 32... Rxd2+ {[%clk 0:02:33.6]} 33. Re2
{[%clk 0:03:28]} 33... Rxe2+ {[%clk 0:02:21.5]} 34. Kxe2 {[%clk 0:03:27.9]}
34... Kf7 {[%clk 0:02:19.9]} 35. b4 {[%clk 0:03:24.3]} 35... Ke6 {[%clk
0:02:17.9]} 36. Ke3 {[%clk 0:03:22.5]} 36... g6 {[%clk 0:02:15.8]} 37. a4 {[%clk
0:03:18.1]} 37... f5 {[%clk 0:02:13.7]} 38. gxf5+ {[%clk 0:03:17]} 38... gxf5
{[%clk 0:02:12.1]} 39. Kf3 {[%clk 0:03:08]} 39... e4+ {[%clk 0:02:10.3]} 40. Ke3
{[%clk 0:03:06.9]} 40... Ke5 {[%clk 0:02:04.8]} 41. c5 {[%clk 0:02:53.1]} 41...
bxc5 {[%clk 0:02:03.2]} 42. b5 {[%clk 0:02:52.7]} 42... Kd5 {[%clk 0:02:00.4]}
43. a5 {[%clk 0:02:51.3]} 43... f4+ {[%clk 0:01:50.9]} 44. Kd2 {[%clk
0:02:49.9]} 44... c4 {[%clk 0:01:48.6]} 45. b6 {[%clk 0:02:47.6]} 45... axb6
{[%clk 0:01:46.1]} 46. a6 {[%clk 0:02:47.5]} 46... Kc6 {[%clk 0:01:44.6]} 47.
Kc3 {[%clk 0:02:45.6]} 47... b5 {[%clk 0:01:42.8]} 48. Kb4 {[%clk 0:02:42.7]}
48... Kb6 {[%clk 0:01:41.4]} 0-1

[Event "Live Chess"]
[Site "Chess.com"]
[Date "2024.06.01"]
[Round "-"]
[White "educatedlad"]
[Black "Queensandpawns"]
[Result "0-1"]
[WhiteElo "1740"]
[BlackElo "2381"]
[TimeControl "300"]
[EndTime "13:47:50 PDT"]
[Termination "Queensandpawns won by checkmate"]

1. d4 {[%clk 0:04:58.6]} 1... e5 {[%clk 0:04:59.7]} 2. dxe5 {[%clk 0:04:56.8]}
2... Bc5 {[%clk 0:04:58.8]} 3. Nc3 {[%clk 0:04:53.7]} 3... d6 {[%clk 0:04:58.2]}
4. exd6 {[%clk 0:04:52.5]} 4... Ne7 {[%clk 0:04:57.8]} 5. d7+ {[%clk 0:04:48.8]}
5... Nxd7 {[%clk 0:04:56]} 6. Nf3 {[%clk 0:04:48.1]} 6... O-O {[%clk 0:04:55.5]}
7. Bf4 {[%clk 0:04:46.3]} 7... Nf6 {[%clk 0:04:54.4]} 8. Qxd8 {[%clk 0:04:44.7]}
8... Rxd8 {[%clk 0:04:54.3]} 9. e3 {[%clk 0:04:42.6]} 9... c6 {[%clk 0:04:52.6]}
10. Bc4 {[%clk 0:04:41]} 10... Bf5 {[%clk 0:04:51.8]} 11. Nh4 {[%clk 0:04:38.4]}
11... Bxc2 {[%clk 0:04:50.4]} 12. O-O {[%clk 0:04:37.6]} 12... b5 {[%clk
0:04:49]} 13. Bb3 {[%clk 0:04:36.3]} 13... a5 {[%clk 0:04:48.6]} 14. Bxc2 {[%clk
0:04:35.2]} 14... h6 {[%clk 0:04:45.9]} 15. Nf3 {[%clk 0:04:32.1]} 15... b4
{[%clk 0:04:40.6]} 16. Na4 {[%clk 0:04:30.3]} 16... Ba7 {[%clk 0:04:38.7]} 17.
b3 {[%clk 0:04:28.9]} 17... Ned5 {[%clk 0:04:37.5]} 18. Bg3 {[%clk 0:04:27.1]}
18... c5 {[%clk 0:04:31.2]} 19. Rad1 {[%clk 0:04:21.8]} 19... Rac8 {[%clk
0:04:29.4]} 20. Nb2 {[%clk 0:04:19.2]} 20... Nc3 {[%clk 0:04:28.1]} 21. Rxd8+
{[%clk 0:04:17.7]} 21... Rxd8 {[%clk 0:04:28]} 22. Nc4 {[%clk 0:04:15.9]} 22...
a4 {[%clk 0:04:25]} 23. bxa4 {[%clk 0:04:13.5]} 23... g5 {[%clk 0:04:13.9]} 24.
Bb3 {[%clk 0:04:11.8]} 24... g4 {[%clk 0:04:12.4]} 25. Nfe5 {[%clk 0:04:09.1]}
25... Nfe4 {[%clk 0:04:10.8]} 26. Nc6 {[%clk 0:04:03.8]} 26... Rd5 {[%clk
0:03:58.7]} 27. Nxa7 {[%clk 0:04:00.8]} 27... Ne2+ {[%clk 0:03:57.6]} 28. Kh1
{[%clk 0:03:58.9]} 28... N4xg3+ {[%clk 0:03:57.5]} 29. fxg3 {[%clk 0:03:56.4]}
29... Rh5 {[%clk 0:03:55.7]} 30. h4 {[%clk 0:03:44]} 30... Nxg3+ {[%clk
0:03:52.5]} 31. Kg1 {[%clk 0:03:43.4]} 31... Nxf1 {[%clk 0:03:52.3]} 32. Kxf1
{[%clk 0:03:42.7]} 32... Rxh4 {[%clk 0:03:52.2]} 33. Kf2 {[%clk 0:03:41.6]}
33... Rh1 {[%clk 0:03:51]} 34. Ne5 {[%clk 0:03:39.7]} 34... h5 {[%clk
0:03:49.7]} 35. Nxf7 {[%clk 0:03:37.3]} 35... Kf8 {[%clk 0:03:49.3]} 36. Ng5
{[%clk 0:03:36.3]} 36... Ke7 {[%clk 0:03:48.2]} 37. Nc6+ {[%clk 0:03:34.2]}
37... Kd6 {[%clk 0:03:47.6]} 38. Nd8 {[%clk 0:03:30.1]} 38... h4 {[%clk
0:03:45.6]} 39. Ndf7+ {[%clk 0:03:28.9]} 39... Kc6 {[%clk 0:03:44.4]} 40. Ne5+
{[%clk 0:03:25.4]} 40... Kb6 {[%clk 0:03:44]} 41. Nxg4 {[%clk 0:03:24.7]} 41...
Rc1 {[%clk 0:03:40.6]} 42. Ne4 {[%clk 0:03:22.4]} 42... c4 {[%clk 0:03:39]} 43.
a5+ {[%clk 0:03:13.1]} 43... Kxa5 {[%clk 0:03:36.5]} 44. Nd2 {[%clk 0:03:08.2]}
44... c3 {[%clk 0:03:28.6]} 45. Nc4+ {[%clk 0:03:07.1]} 45... Kb5 {[%clk
0:03:27.2]} 46. Ke2 {[%clk 0:03:03.5]} 46... Rg1 {[%clk 0:03:25.8]} 47. Kf2
{[%clk 0:02:57.7]} 47... Rc1 {[%clk 0:03:24.9]} 48. Ke2 {[%clk 0:02:56.4]} 48...
Rg1 {[%clk 0:03:21.9]} 49. Kf2 {[%clk 0:02:55.1]} 49... Ra1 {[%clk 0:03:10.6]}
50. Nd6+ {[%clk 0:02:50.2]} 50... Kc5 {[%clk 0:03:08.1]} 51. Ne4+ {[%clk
0:02:49.3]} 51... Kb5 {[%clk 0:03:06.5]} 52. Ne5 {[%clk 0:02:42.2]} 52... c2
{[%clk 0:03:04.6]} 53. Bxc2 {[%clk 0:02:40.1]} 53... Rxa2 {[%clk 0:03:03.6]} 54.
Kf3 {[%clk 0:02:33.9]} 54... Rxc2 {[%clk 0:03:02.3]} 55. Nd6+ {[%clk 0:02:31.9]}
55... Ka4 {[%clk 0:03:01.7]} 56. Nd3 {[%clk 0:02:29.2]} 56... b3 {[%clk
0:02:59.2]} 57. Ne4 {[%clk 0:02:25.3]} 57... b2 {[%clk 0:02:55.5]} 58. Nxb2+
{[%clk 0:02:22]} 58... Rxb2 {[%clk 0:02:55.4]} 59. Nc5+ {[%clk 0:02:21.1]} 59...
Kb5 {[%clk 0:02:54.4]} 60. Nd3 {[%clk 0:02:20]} 60... Ra2 {[%clk 0:02:50.8]} 61.
Nf4 {[%clk 0:02:18.6]} 61... Kc4 {[%clk 0:02:49]} 62. Kg4 {[%clk 0:02:17.8]}
62... Ra3 {[%clk 0:02:44.3]} 63. e4 {[%clk 0:02:14]} 63... Kd4 {[%clk
0:02:42.5]} 64. Kxh4 {[%clk 0:02:11.9]} 64... Kxe4 {[%clk 0:02:41.6]} 65. Ne6
{[%clk 0:02:09.2]} 65... Kf5 {[%clk 0:02:37.4]} 66. Nd4+ {[%clk 0:02:07.3]}
66... Kg6 {[%clk 0:02:35]} 67. g4 {[%clk 0:02:06.3]} 67... Ra1 {[%clk
0:02:33.2]} 68. Kg3 {[%clk 0:02:02.9]} 68... Kg5 {[%clk 0:02:31.1]} 69. Ne6+
{[%clk 0:02:01.4]} 69... Kf6 {[%clk 0:02:30.4]} 70. Nf4 {[%clk 0:01:57.4]} 70...
Ke5 {[%clk 0:02:29]} 71. g5 {[%clk 0:01:54.2]} 71... Ra3+ {[%clk 0:02:27.1]} 72.
Kh4 {[%clk 0:01:45.7]} 72... Kxf4 {[%clk 0:02:25.5]} 73. g6 {[%clk 0:01:44.9]}
73... Ra8 {[%clk 0:02:22.8]} 74. Kh5 {[%clk 0:01:43.7]} 74... Kf5 {[%clk
0:02:22.3]} 75. g7 {[%clk 0:01:42.7]} 75... Kf6 {[%clk 0:02:21.8]} 76. Kh6
{[%clk 0:01:42.1]} 76... Rg8 {[%clk 0:02:19.7]} 77. Kh7 {[%clk 0:01:41.3]} 77...
Rxg7+ {[%clk 0:02:19.6]} 78. Kh8 {[%clk 0:01:40.6]} 78... Rg1 {[%clk 0:02:18.9]}
79. Kh7 {[%clk 0:01:40.1]} 79... Rg2 {[%clk 0:02:18.2]} 80. Kh8 {[%clk
0:01:39.6]} 80... Kf7 {[%clk 0:02:17.7]} 81. Kh7 {[%clk 0:01:39.2]} 81... Rh2#
{[%clk 0:02:17.6]} 0-1

[Event "Live Chess"]
[Site "Chess.com"]
[Date "2024.06.01"]
[Round "-"]
[White "ProfPoisson"]
[Black "Nicckui"]
[Result "0-1"]
[WhiteElo "1292"]
[BlackElo "2327"]
[TimeControl "300"]
[EndTime "13:47:53 PDT"]
[Termination "Nicckui won by checkmate"]

1. e4 {[%clk 0:04:56.2]} 1... c6 {[%clk 0:04:59.1]} 2. d4 {[%clk 0:04:53.8]}
2... d5 {[%clk 0:04:59]} 3. exd5 {[%clk 0:04:51.9]} 3... cxd5 {[%clk 0:04:58.9]}
4. c4 {[%clk 0:04:50.1]} 4... Nf6 {[%clk 0:04:58.2]} 5. Nc3 {[%clk 0:04:45.8]}
5... g6 {[%clk 0:04:57.4]} 6. Qb3 {[%clk 0:04:39.1]} 6... Bg7 {[%clk 0:04:55]}
7. cxd5 {[%clk 0:04:35.9]} 7... O-O {[%clk 0:04:54.1]} 8. Nf3 {[%clk 0:04:33.5]}
8... Nbd7 {[%clk 0:04:53.4]} 9. g3 {[%clk 0:04:23.4]} 9... Nb6 {[%clk
0:04:52.4]} 10. Bg2 {[%clk 0:04:21.9]} 10... Nbxd5 {[%clk 0:04:48.8]} 11. O-O
{[%clk 0:04:12.5]} 11... Nxc3 {[%clk 0:04:45]} 12. bxc3 {[%clk 0:04:09.6]} 12...
a5 {[%clk 0:04:32.1]} 13. Ne5 {[%clk 0:04:07.4]} 13... Ra6 {[%clk 0:04:23.5]}
14. Bxb7 {[%clk 0:04:00.4]} 14... Rb6 {[%clk 0:04:19.8]} 15. Nc6 {[%clk
0:03:48.2]} 15... Qc7 {[%clk 0:04:15.1]} 16. Nxe7+ {[%clk 0:03:29.3]} 16... Kh8
{[%clk 0:04:03.2]} 17. Nd5 {[%clk 0:03:26.1]} 17... Nxd5 {[%clk 0:03:57.8]} 18.
Qxd5 {[%clk 0:03:22.4]} 18... Bxb7 {[%clk 0:03:56.5]} 19. Qxa5 {[%clk 0:03:14]}
19... Qc6 {[%clk 0:03:50.3]} 20. Ba3 {[%clk 0:03:06.9]} 20... Qg2# {[%clk
0:03:48.5]} 0-1

[Event "Live Chess"]
[Site "Chess.com"]
[Date "2024.06.01"]
[Round "-"]
[White "bonantagulo"]
[Black "jimwad"]
[Result "1-0"]
[WhiteElo "2073"]
[BlackElo "1287"]
[TimeControl "300"]
[EndTime "13:48:06 PDT"]
[Termination "bonantagulo won by resignation"]

1. d4 {[%clk 0:04:56.1]} 1... d5 {[%clk 0:04:58.7]} 2. e4 {[%clk 0:04:55]} 2...
dxe4 {[%clk 0:04:57.3]} 3. Nc3 {[%clk 0:04:53.6]} 3... Nf6 {[%clk 0:04:55.2]} 4.
Bg5 {[%clk 0:04:52.1]} 4... Nbd7 {[%clk 0:04:52.6]} 5. Nge2 {[%clk 0:04:50.6]}
5... g6 {[%clk 0:04:47.6]} 6. Ng3 {[%clk 0:04:45.4]} 6... Bg7 {[%clk 0:04:46.4]}
7. Ngxe4 {[%clk 0:04:44]} 7... Nxe4 {[%clk 0:04:44.6]} 8. Nxe4 {[%clk
0:04:43.9]} 8... O-O {[%clk 0:04:41.2]} 9. Be2 {[%clk 0:04:27.8]} 9... Nb6
{[%clk 0:04:38.2]} 10. c3 {[%clk 0:04:26.2]} 10... Bf5 {[%clk 0:04:35.1]} 11.
Bf3 {[%clk 0:04:24.8]} 11... c6 {[%clk 0:04:23]} 12. O-O {[%clk 0:04:22.9]}
12... h6 {[%clk 0:04:18]} 13. Bh4 {[%clk 0:04:21.5]} 13... g5 {[%clk 0:04:17]}
14. Bg3 {[%clk 0:04:20.8]} 14... Bg6 {[%clk 0:04:04]} 15. Re1 {[%clk 0:04:17.4]}
15... f5 {[%clk 0:04:02.6]} 16. Nc5 {[%clk 0:04:03.5]} 16... Bf7 {[%clk
0:03:38.7]} 17. Be5 {[%clk 0:03:59.7]} 17... Bxe5 {[%clk 0:03:37.1]} 18. Rxe5
{[%clk 0:03:59.6]} 18... f4 {[%clk 0:03:18.2]} 19. Qe2 {[%clk 0:03:50.1]} 19...
Nd5 {[%clk 0:03:14.3]} 20. Ne6 {[%clk 0:03:44.6]} 20... Bxe6 {[%clk 0:03:12.4]}
21. Rxe6 {[%clk 0:03:44.5]} 21... Rf6 {[%clk 0:02:58.2]} 22. Bxd5 {[%clk
0:03:41]} 22... cxd5 {[%clk 0:02:52.1]} 23. Rxe7 {[%clk 0:03:40]} 23... Qb6
{[%clk 0:02:37.5]} 24. Re1 {[%clk 0:03:34.8]} 24... Raf8 {[%clk 0:02:31.2]} 25.
Re8 {[%clk 0:03:29.8]} 25... Qd6 {[%clk 0:02:24.9]} 26. Rxf8+ {[%clk 0:03:27.1]}
26... Qxf8 {[%clk 0:02:19.7]} 27. Qe7 {[%clk 0:03:25.5]} 27... Rf7 {[%clk
0:02:17.2]} 28. Qe6 {[%clk 0:03:22.3]} 28... Kg7 {[%clk 0:02:14]} 29. Qxd5
{[%clk 0:03:20.5]} 29... Re7 {[%clk 0:02:12]} 30. Rxe7+ {[%clk 0:03:16]} 30...
Qxe7 {[%clk 0:02:11.1]} 31. Qe5+ {[%clk 0:03:14.1]} 31... Qxe5 {[%clk
0:02:09.3]} 32. dxe5 {[%clk 0:03:14]} 32... Kf7 {[%clk 0:02:08.6]} 33. Kf1
{[%clk 0:03:12.5]} 33... Ke6 {[%clk 0:02:07.8]} 34. Ke2 {[%clk 0:03:12.4]} 34...
Kxe5 {[%clk 0:02:07.2]} 35. Kd3 {[%clk 0:03:11.9]} 35... b5 {[%clk 0:02:05.3]}
36. b3 {[%clk 0:03:10.7]} 36... a5 {[%clk 0:02:03.8]} 37. f3 {[%clk 0:03:09.7]}
37... Kd5 {[%clk 0:02:02.3]} 38. c4+ {[%clk 0:03:08.9]} 38... bxc4+ {[%clk
0:01:58.7]} 39. bxc4+ {[%clk 0:03:08.8]} 39... Kc5 {[%clk 0:01:56.9]} 40. Kc3
{[%clk 0:03:08.3]} 40... h5 {[%clk 0:01:53.5]} 41. h3 {[%clk 0:03:07.5]} 41...
a4 {[%clk 0:01:48.7]} 42. a3 {[%clk 0:03:06.5]} 42... h4 {[%clk 0:01:47.6]} 43.
Kd3 {[%clk 0:03:04.8]} 43... Kc6 {[%clk 0:01:41.8]} 44. Kd4 {[%clk 0:03:04.7]}
44... Kd6 {[%clk 0:01:40.8]} 45. c5+ {[%clk 0:03:04.6]} 45... Kc6 {[%clk
0:01:38.9]} 46. Kc4 {[%clk 0:03:04.5]} 46... Kc7 {[%clk 0:01:37.9]} 47. Kb5
{[%clk 0:03:04.2]} 47... Kb7 {[%clk 0:01:36.8]} 48. Kxa4 {[%clk 0:03:03.7]}
48... Kc6 {[%clk 0:01:36.1]} 49. Kb4 {[%clk 0:03:03.2]} 1-0

[Event "Live Chess"]
[Site "Chess.com"]
[Date "2024.06.01"]
[Round "-"]
[White "Frankie_Badacsonyi"]
[Black "stevochess11"]
[Result "1-0"]
[WhiteElo "2440"]
[BlackElo "1703"]
[TimeControl "300"]
[EndTime "13:48:24 PDT"]
[Termination "Frankie_Badacsonyi won by resignation"]

1. d4 {[%clk 0:04:58.3]} 1... Nf6 {[%clk 0:04:56.5]} 2. c4 {[%clk 0:04:56.5]}
2... c5 {[%clk 0:04:53.9]} 3. d5 {[%clk 0:04:55.4]} 3... b5 {[%clk 0:04:52.6]}
4. cxb5 {[%clk 0:04:53.9]} 4... a6 {[%clk 0:04:51.6]} 5. b6 {[%clk 0:04:53.4]}
5... e6 {[%clk 0:04:49.8]} 6. Nc3 {[%clk 0:04:51.8]} 6... Bb7 {[%clk 0:04:45.9]}
7. e4 {[%clk 0:04:48.1]} 7... d6 {[%clk 0:04:37.2]} 8. Nf3 {[%clk 0:04:45.9]}
8... Qxb6 {[%clk 0:04:35.9]} 9. Bc4 {[%clk 0:04:40.9]} 9... Be7 {[%clk
0:04:21.8]} 10. dxe6 {[%clk 0:04:37.3]} 10... fxe6 {[%clk 0:04:13.3]} 11. e5
{[%clk 0:04:34]} 11... Ne4 {[%clk 0:04:05.3]} 12. exd6 {[%clk 0:04:27.7]} 12...
Nxd6 {[%clk 0:04:01.3]} 13. Bxe6 {[%clk 0:04:19]} 13... Rf8 {[%clk 0:03:38.1]}
14. Bd5 {[%clk 0:04:16.3]} 14... Nc6 {[%clk 0:03:35.9]} 15. O-O {[%clk
0:04:08.1]} 15... O-O-O {[%clk 0:03:30.4]} 16. Qb3 {[%clk 0:04:05.3]} 16... Qc7
{[%clk 0:03:22.6]} 17. Be6+ {[%clk 0:04:01.5]} 17... Kb8 {[%clk 0:03:20.4]} 18.
Nd5 {[%clk 0:04:00.1]} 18... Qa5 {[%clk 0:03:16.9]} 19. Bd2 {[%clk 0:03:51.6]}
19... Rxf3 {[%clk 0:03:05.5]} 20. Bxa5 {[%clk 0:03:46.1]} 20... Rxb3 {[%clk
0:03:03.5]} 21. Bc7+ {[%clk 0:03:44.9]} 21... Ka7 {[%clk 0:03:01.1]} 22. axb3
{[%clk 0:03:44]} 1-0